bitfinex-derivatives/quotes_BTCF0:USTF0_20251216
["timestamp","ask_amount","ask_price","bid_price","bid_amount"]
[1765847104202,0.12219443,86013.0,86012.0,0.12467]
[1765847104404,0.00017443,86013.0,86012.0,0.12467]
[1765847107508,0.12219443,86013.0,86012.0,0.12467]
[1765847107998,0.06072443,86013.0,86012.0,0.12467]
[1765847108203,0.00017443,86013.0,86012.0,0.12467]
[1765847109611,0.12219443,86013.0,86012.0,0.12467]
[1765847109911,0.06072443,86013.0,86012.0,0.12467]
[1765847110817,0.12219443,86013.0,86012.0,0.12467]
[1765847111007,0.1336482,86008.0,86006.0,0.08350442]
[1765847111209,0.12202,85997.0,85993.0,0.08350442]
[1765847111412,0.1553709,85988.0,85986.0,0.08350442]
[1765847111708,0.1336514,85984.0,85983.0,0.06123]
[1765847112114,0.1336518,85981.0,85980.0,0.60959]
[1765847112311,0.1336518,85981.0,85980.0,0.54836]
[1765847114215,0.1336518,85981.0,85980.0,0.60959]
[1765847114919,0.4944518,85981.0,85980.0,0.60959]
[1765847116918,0.4944518,85981.0,85980.0,0.67303]
[1765847126234,0.4944518,85981.0,85980.0,0.693]
[1765847126421,0.1336518,85981.0,85980.0,0.693]
[1765847127223,0.0116318,85981.0,85980.0,0.693]
[1765847127431,0.1336518,85981.0,85980.0,0.693]
[1765847128039,0.1336518,85981.0,85980.0,0.67303]
[1765847130633,0.1336518,85981.0,85980.0,0.70795]
[1765847133829,0.4944518,85981.0,85980.0,0.67303]
[1765847134034,0.1196729,85973.0,85972.0,0.11159443]
[1765847136532,0.10821443,85989.0,85988.0,0.11142]
[1765847136731,0.11984513,85989.0,85988.0,0.11142]
[1765847139141,0.11984513,85989.0,85988.0,0.14648]
[1765847139838,0.1196718,85981.0,85980.0,0.11142]
[1765847141134,0.1196718,85981.0,85980.0,0.123052]
[1765847142142,0.1196718,85981.0,85980.0,0.11142]
[1765847142846,0.1196718,85981.0,85980.0,0.14211]
[1765847144145,0.0654818,85981.0,85980.0,0.14211]
[1765847146442,0.0654818,85981.0,85980.0,0.22561442]
[1765847146646,0.0654818,85981.0,85980.0,0.14211]
[1765847147247,0.00017443,85989.0,85988.0,0.11142]
[1765847147448,0.00017443,85989.0,85988.0,0.1951157]
[1765847148043,0.3724295,85999.0,85998.0,0.14584]
[1765847148544,0.4262795,85999.0,85998.0,0.14584]
[1765847149141,0.3608,85999.0,85998.0,0.14584]
[1765847149343,0.00017443,86007.0,86006.0,0.1230484]
[1765847150044,0.00017443,86007.0,86006.0,0.11142]
[1765847150437,0.10821443,86007.0,86006.0,0.11142]
[1765847151142,0.10821443,86007.0,86006.0,0.1230484]
[1765847151747,0.00017443,86007.0,86006.0,0.1230484]
[1765847155439,0.00232511,86018.0,86017.0,0.123047]
[1765847155752,0.00232511,86018.0,86017.0,0.483847]
[1765847158343,0.3608,86043.0,86042.0,0.11142]
[1765847158657,0.46884,86043.0,86042.0,0.11142]
[1765847160236,0.17866175,86052.0,86042.0,0.11142]
[1765847160237,0.0116223,86052.0,86051.0,0.02754]
[1765847160443,0.3608,86053.0,86052.0,0.11142]
[1765847160943,0.10804,86043.0,86042.0,0.05492]
[1765847161541,0.3608,86045.0,86044.0,0.146]
[1765847161748,0.46884,86053.0,86052.0,0.11142]
[1765847162147,0.1026,86043.0,86042.0,0.15791]
[1765847162742,0.1142234,86043.0,86042.0,0.15791]
[1765847164145,0.1142234,86043.0,86042.0,0.05492]
[1765847165048,0.04886,86049.0,86048.0,0.1146128]
[1765847166045,0.1026,86049.0,86048.0,0.1146128]
[1765847166239,0.40966,86053.0,86052.0,0.1146122]
[1765847166649,0.04886,86053.0,86052.0,0.1146122]
[1765847166839,0.1026,86053.0,86052.0,0.1146122]
[1765847167644,0.10492403,86058.0,86057.0,0.1146115]
[1765847167850,0.05118403,86058.0,86057.0,0.1146115]
[1765847168050,0.00232403,86058.0,86057.0,0.1146115]
[1765847168848,0.05118403,86058.0,86057.0,0.1146115]
[1765847169347,0.00232403,86058.0,86057.0,0.1146115]
[1765847169553,0.3608,86071.0,86070.0,0.1146098]
[1765847169744,0.04886,86081.0,86080.0,0.0116184]
[1765847169940,0.71458466,86088.0,86087.0,0.1146075]
[1765847170157,0.4634,86088.0,86087.0,0.1146075]
[1765847170338,0.3608,86088.0,86087.0,0.1146075]
[1765847170541,0.4634,86088.0,86087.0,0.10299]
[1765847170741,0.49424,86088.0,86087.0,0.10299]
[1765847171248,0.4634,86088.0,86087.0,0.10299]
[1765847172344,0.1142175,86087.0,86086.0,0.65596]
[1765847172546,0.1142186,86079.0,86078.0,0.3608]
[1765847172747,0.1026,86069.0,86068.0,0.41172]
[1765847172951,0.1026,86069.0,86068.0,0.46379]
[1765847173150,0.114219,86077.0,86076.0,0.10299]
[1765847173347,0.1026,86077.0,86076.0,0.10299]
[1765847173547,0.1026,86077.0,86076.0,0.114609]
[1765847173958,0.1026,86077.0,86076.0,0.05092]
[1765847174159,0.1026,86077.0,86076.0,0.10299]
[1765847174857,0.1026,86069.0,86068.0,0.47757043]
[1765847176856,0.04886,86069.0,86068.0,0.48919053]
[1765847177348,0.04886,86063.0,86062.0,0.00017432]
[1765847177552,0.1026,86063.0,86062.0,0.06523106]
[1765847177751,0.1026,86063.0,86062.0,0.11730106]
[1765847178453,0.1026,86063.0,86062.0,0.10316432]
[1765847178653,0.1026,86063.0,86062.0,0.00017432]
[1765847179758,0.1026,86055.0,86054.0,0.10299]
[1765847180058,0.1026,86055.0,86054.0,0.114612]
[1765847180556,0.1026,86055.0,86054.0,0.12815896]
[1765847181061,0.1026,86060.0,86059.0,0.1146113]
[1765847181654,0.1026,86060.0,86059.0,0.10299]
[1765847182655,0.1026,86050.0,86049.0,1.0288226]
[1765847183166,0.1026,86059.0,86058.0,0.10299]
[1765847186662,0.1026,86059.0,86058.0,0.13405]
[1765847187169,0.3608,86069.0,86062.0,0.1146109]
[1765847187368,0.37242,86069.0,86062.0,0.1146109]
[1765847187665,0.10277397,86063.0,86062.0,0.1146109]
[1765847187851,0.10277397,86063.0,86056.0,0.3608]
[1765847187852,0.1026,86057.0,86056.0,0.46379]
[1765847188256,0.1026,86057.0,86056.0,0.49433]
[1765847188968,0.1026,86057.0,86056.0,0.46379]
[1765847189863,0.10277397,86063.0,86062.0,0.1146109]
[1765847190063,0.10277397,86063.0,86062.0,0.10299]
[1765847192267,0.09195,86057.0,86056.0,0.45249]
[1765847193058,0.09195,86057.0,86056.0,0.4641117]
[1765847193261,0.10374477,86063.0,86062.0,0.1033109]
[1765847194068,0.10374477,86063.0,86062.0,0.0116209]
[1765847194669,0.10374477,86063.0,86056.0,0.3608]
[1765847194670,0.1035715,86057.0,86056.0,0.4641115]
[1765847194871,0.09195,86057.0,86056.0,0.4641115]
[1765847197972,0.09195,86057.0,86056.0,0.4918115]
[1765847198172,0.09212397,86063.0,86062.0,0.09169]
[1765847198365,0.1035715,86057.0,86056.0,0.4189317]
[1765847198566,0.1035715,86057.0,86056.0,0.4641117]
[1765847198765,0.09195,86057.0,86056.0,0.4641117]
[1765847199773,0.09195,86057.0,86056.0,0.09169]
[1765847199973,0.09195,86047.0,86042.0,0.08359757]
[1765847200173,0.09195,86047.0,86039.0,0.85608]
[1765847201171,0.09195,86047.0,86039.0,0.49528]
[1765847202769,0.1035738,86040.0,86039.0,0.49528]
[1765847203072,0.1035749,86032.0,86031.0,0.058135]
[1765847203276,0.1035749,86032.0,86031.0,0.04651]
[1765847204374,0.1035749,86032.0,86027.0,0.65428]
[1765847204375,0.09195,86028.0,86027.0,0.65428]
[1765847204768,0.09195,86028.0,86027.0,0.70079]
[1765847205783,0.09195,86028.0,86027.0,0.74597]
[1765847214886,0.09195,86028.0,86027.0,0.7575956]
[1765847216684,0.04504,86028.0,86027.0,0.7575956]
[1765847217188,0.09195,86028.0,86027.0,0.7575956]
[1765847219780,0.04504,86028.0,86027.0,0.7575956]
[1765847220083,0.0116253,86029.0,86028.0,0.12092]
[1765847220387,0.0566653,86029.0,86028.0,0.12092]
[1765847220798,0.1035753,86029.0,86028.0,0.09169]
[1765847221889,0.45275,86033.0,86032.0,0.09169]
[1765847222091,0.44496432,86040.0,86039.0,0.08402]
[1765847222290,0.45658812,86040.0,86039.0,0.08402]
[1765847225591,0.48203812,86040.0,86039.0,0.08402]
[1765847228194,0.45658812,86040.0,86039.0,0.08402]
[1765847228599,0.48248812,86040.0,86039.0,0.08402]
[1765847231381,0.36097432,86040.0,86039.0,0.08402]
[1765847231981,0.00017432,86040.0,86039.0,0.08402]
[1765847232381,0.00017432,86040.0,86039.0,0.44482]
[1765847232587,0.00017432,86040.0,86039.0,0.54942305]
[1765847232782,0.00017432,86040.0,86039.0,0.44482]
[1765847232991,0.00017432,86040.0,86039.0,1.17286]
[1765847233199,0.00017432,86040.0,86039.0,1.37149284]
[1765847233398,0.00017432,86040.0,86039.0,1.26701264]
[1765847234196,0.00017432,86040.0,86039.0,1.37145645]
[1765847235300,0.00017432,86040.0,86039.0,1.26701264]
[1765847236098,0.00017432,86040.0,86039.0,1.37145645]
[1765847237097,0.08416432,86040.0,86039.0,1.27730381]
[1765847237300,0.08416432,86040.0,86039.0,1.17286]
[1765847237497,0.00017432,86040.0,86039.0,0.44482]
[1765847237803,0.04302432,86040.0,86039.0,0.44482]
[1765847238700,0.00017432,86040.0,86039.0,0.44482]
[1765847241111,0.04302432,86040.0,86039.0,0.44482]
[1765847241903,0.08416432,86040.0,86039.0,0.44482]
[1765847242202,0.11050432,86040.0,86039.0,0.12609095]
[1765847242403,0.11050432,86040.0,86036.0,0.728]
[1765847242404,0.0956142,86037.0,86036.0,0.728]
[1765847244013,0.05464812,86040.0,86039.0,0.08402]
[1765847244598,0.05464812,86040.0,86039.0,0.16749095]
[1765847244599,0.00017432,86040.0,86039.0,0.16749095]
[1765847245119,0.3608,86051.0,86050.0,0.08402]
[1765847245501,0.40365,86051.0,86050.0,0.08402]
[1765847246409,0.3608,86051.0,86050.0,0.08402]
[1765847246910,0.0956118,86056.0,86055.0,0.08402]
[1765847247712,0.0956118,86056.0,86055.0,0.04262]
[1765847248108,0.0956118,86056.0,86055.0,0.08402]
[1765847249407,0.05868,86058.0,86057.0,0.04262]
[1765847249611,0.0956114,86058.0,86057.0,0.08402]
[1765847251112,0.0544714,86058.0,86057.0,0.08402]
[1765847251515,0.0956114,86058.0,86057.0,0.08402]
[1765847253323,0.1190014,86058.0,86057.0,0.08402]
[1765847253824,0.0956114,86058.0,86057.0,0.08402]
[1765847255923,0.00017397,86059.0,86051.0,0.01608]
[1765847255924,0.00017397,86059.0,86058.0,0.1112014]
[1765847257814,0.00017397,86059.0,86058.0,0.21564521]
[1765847258015,0.0886593,86074.0,86073.0,0.07651]
[1765847258921,0.0513289,86077.0,86076.0,0.07651]
[1765847259114,0.0886589,86077.0,86076.0,0.07651]
[1765847259514,0.0886589,86077.0,86076.0,0.08944614]
[1765847259911,0.0886599,86069.0,86068.0,0.43731]
[1765847261324,0.0886599,86069.0,86068.0,0.07651]
[1765847262025,0.03971,86069.0,86068.0,0.07651]
[1765847262224,0.0886596,86072.0,86071.0,0.07651]
[1765847264415,0.1120496,86072.0,86071.0,0.07651]
[1765847270120,0.0886601,86068.0,86067.0,0.08959899]
[1765847272433,0.0886603,86066.0,86065.0,0.00017432]
[1765847273226,0.0886603,86066.0,86065.0,0.07668432]
[1765847280633,0.07704,86056.0,86055.0,0.08342926]
[1765847280830,0.088662,86054.0,86053.0,0.12052926]
[1765847281231,0.088662,86054.0,86053.0,0.13368837]
[1765847281428,0.088662,86054.0,86053.0,0.17309837]
[1765847281628,0.088662,86054.0,86053.0,0.08966911]
[1765847283539,0.088662,86054.0,86053.0,0.07651]
[1765847294449,0.4415117,86056.0,86055.0,0.08401]
[1765847294645,0.4415117,86056.0,86055.0,0.06734]
[1765847298339,0.4415117,86056.0,86055.0,0.08862]
[1765847298646,0.0807117,86056.0,86055.0,0.06734]
[1765847300039,0.06909,86055.0,86054.0,0.08342926]
[1765847300240,0.06909,86053.0,86052.0,0.08032386]
[1765847300442,0.06909,86053.0,86052.0,0.06734]
[1765847301149,0.06909,86053.0,86052.0,0.15088986]
[1765847302246,0.06909,86053.0,86052.0,0.08060504]
[1765847302745,0.06909,86053.0,86045.0,0.00017432]
[1765847302746,0.080713,86046.0,86045.0,0.00017432]
[1765847303052,0.441513,86046.0,86045.0,0.00017432]
[1765847303748,0.441513,86046.0,86039.0,0.01327942]
[1765847303749,0.1013938,86040.0,86039.0,0.01327942]
[1765847304050,0.0807142,86037.0,86036.0,0.12964786]
[1765847304443,0.0807142,86037.0,86036.0,0.04605934]
[1765847304752,0.0807142,86037.0,86036.0,0.08032934]
[1765847304940,0.06909,86036.0,86035.0,0.08358852]
[1765847305141,0.06909,86036.0,86035.0,0.0963385]
[1765847305446,0.06909,86036.0,86035.0,0.08358852]
[1765847306152,0.06909,86036.0,86035.0,0.16386409]
[1765847306346,0.06909,86036.0,86035.0,0.08027557]
[1765847307951,0.06909,86036.0,86035.0,0.06734]
[1765847308156,0.06909,86036.0,86035.0,0.03307]
[1765847309149,0.0807152,86030.0,86029.0,0.15092852]
[1765847309348,0.4415152,86030.0,86029.0,0.06734]
[1765847309553,0.4415152,86030.0,86029.0,0.16402355]
[1765847310248,0.3608,86030.0,86029.0,0.16402355]
[1765847310755,0.42989,86030.0,86029.0,0.16402355]
[1765847311051,0.42989,86030.0,86029.0,0.08043503]
[1765847311248,0.42989,86030.0,86029.0,0.16402355]
[1765847313252,0.3608,86038.0,86037.0,0.06353]
[1765847313549,0.3724241,86038.0,86037.0,0.06353]
[1765847313750,0.4026041,86038.0,86037.0,0.06353]
[1765847314551,0.4337241,86038.0,86037.0,0.06353]
[1765847315348,0.4337241,86038.0,86031.0,0.08347582]
[1765847315349,0.0729249,86032.0,86031.0,0.14700582]
[1765847316753,0.0729249,86032.0,86031.0,0.14800582]
[1765847318754,0.0729249,86032.0,86031.0,0.06353]
[1765847318957,0.0729249,86032.0,86031.0,0.06453]
[1765847319551,0.0729249,86032.0,86031.0,0.06353]
[1765847319752,0.0729249,86032.0,86031.0,0.06453]
[1765847321859,0.0729249,86032.0,86031.0,0.001]
[1765847322165,0.0729249,86032.0,86031.0,0.0325]
[1765847322462,0.0729249,86032.0,86031.0,0.06453]
[1765847327666,0.0729249,86032.0,86031.0,0.14800582]
[1765847329469,0.0729249,86032.0,86031.0,0.06453]
[1765847330572,0.0729249,86032.0,86015.0,0.50737969]
[1765847330573,0.0613,86029.0,86025.0,0.10457863]
[1765847330775,0.0116271,86016.0,86013.0,0.08360521]
[1765847330969,0.0613,86012.0,86011.0,0.08360521]
[1765847331158,0.0613,86006.0,86005.0,0.06353]
[1765847331658,0.06141804,86006.0,86005.0,0.07661738]
[1765847331861,0.05841804,86006.0,86005.0,0.07661738]
[1765847332780,0.05841804,86006.0,86005.0,0.07761738]
[1765847333586,0.05941804,86006.0,86005.0,0.07761738]
[1765847334280,0.05941804,86006.0,86005.0,0.07661738]
[1765847334475,0.05941804,86006.0,86005.0,0.16012602]
[1765847334679,0.00011804,86006.0,86005.0,0.07661738]
[1765847334874,0.00211804,86006.0,86005.0,0.07661738]
[1765847335883,0.00211804,86006.0,86005.0,0.07761738]
[1765847336079,0.03229804,86006.0,86005.0,0.07761738]
[1765847336383,0.06341804,86006.0,86005.0,0.16108881]
[1765847336577,0.00211804,86006.0,86005.0,0.16108881]
[1765847337578,0.03229804,86006.0,86005.0,0.16108881]
[1765847337782,0.03229804,86006.0,86005.0,0.16008881]
[1765847338184,0.04392644,86006.0,86005.0,0.16008881]
[1765847338480,0.04392644,86006.0,86005.0,0.07661738]
[1765847340181,0.04292644,86006.0,86005.0,0.07661738]
[1765847340377,0.07404644,86006.0,86005.0,0.07661738]
[1765847340987,0.07404644,86006.0,86005.0,0.07761738]
[1765847341281,0.07504644,86006.0,86005.0,0.07761738]
[1765847341587,0.07504644,86006.0,86005.0,0.01408738]
[1765847341783,0.07504644,86006.0,86005.0,0.04558738]
[1765847342485,0.07504644,86006.0,86005.0,0.07761738]
[1765847342677,0.00211804,86006.0,86005.0,0.07761738]
[1765847343081,0.00311804,86006.0,86005.0,0.07761738]
[1765847343583,0.00011804,86006.0,86005.0,0.07761738]
[1765847343786,0.00211804,86006.0,86005.0,0.16108881]
[1765847343984,0.00211804,86006.0,86005.0,0.07761738]
[1765847344285,0.00311804,86006.0,86005.0,0.07661738]
[1765847344979,0.00211804,86006.0,86005.0,0.07661738]
[1765847345180,0.00211804,86006.0,86005.0,0.07861738]
[1765847345390,0.00017432,86014.0,86013.0,0.0791675]
[1765847345689,0.00017432,86014.0,86013.0,0.16255955]
[1765847346278,0.00017432,86014.0,86013.0,0.0791675]
[1765847346591,0.00117432,86014.0,86013.0,0.0791675]
[1765847347390,0.00117432,86014.0,86013.0,0.0801675]
[1765847347985,0.00117432,86014.0,86013.0,0.0791675]
[1765847348189,0.00117432,86014.0,86013.0,0.0801675]
[1765847349681,0.00017432,86014.0,86013.0,0.0801675]
[1765847350288,0.00017432,86014.0,86013.0,0.16258951]
[1765847350588,0.00017432,86014.0,86013.0,0.16358951]
[1765847351290,0.00017432,86014.0,86013.0,0.16258951]
[1765847352190,0.00017432,86014.0,86013.0,0.0791675]
[1765847353288,0.00017432,86014.0,86013.0,0.16261859]
[1765847353591,0.00017432,86014.0,86013.0,0.0791675]
[1765847354492,0.06806432,86014.0,86013.0,0.06754]
[1765847354793,0.00017432,86014.0,86013.0,0.06754]
[1765847356489,0.3608,86026.0,86025.0,0.0926759]
[1765847357280,0.42869,86026.0,86025.0,0.08105]
[1765847362592,0.06789,86026.0,86025.0,0.08105]
[1765847363098,0.03353,86026.0,86025.0,0.08105]
[1765847363400,0.07968912,86034.0,86033.0,0.06754]
[1765847365395,0.08068912,86034.0,86033.0,0.06754]
[1765847367802,0.0795157,86026.0,86025.0,0.15105126]
[1765847367996,0.0795157,86026.0,86025.0,0.03267]
[1765847368501,0.0795157,86026.0,86025.0,0.06754]
[1765847369304,0.3608,86028.0,86027.0,0.0791656]
[1765847369493,0.0116254,86029.0,86028.0,0.06754]
[1765847369688,0.0795154,86029.0,86028.0,0.06754]
[1765847371501,0.06497,86027.0,86026.0,0.08351126]
[1765847371695,0.0765957,86026.0,86025.0,0.11489126]
[1765847372000,0.0765957,86026.0,86025.0,0.14754126]
[1765847372296,0.0765957,86026.0,86025.0,0.06403]
[1765847373803,0.0775957,86026.0,86025.0,0.06403]
[1765847374004,0.0775957,86026.0,86025.0,0.14763921]
[1765847374619,0.0775957,86026.0,86025.0,0.11498921]
[1765847375804,0.0775957,86026.0,86025.0,0.03138]
[1765847376106,0.0775957,86026.0,86025.0,0.06395]
[1765847387307,0.0765957,86026.0,86025.0,0.06395]
[1765847388709,0.3608,86028.0,86027.0,0.06431]
[1765847389103,0.42065,86028.0,86027.0,0.06431]
[1765847390007,0.05985,86023.0,86022.0,0.79215]
[1765847390817,0.0714761,86023.0,86022.0,0.79215]
[1765847391215,0.05985,86023.0,86022.0,0.79215]
[1765847391518,0.42065,86028.0,86027.0,0.06431]
[1765847391713,0.3608,86028.0,86027.0,0.06431]
[1765847392524,0.00017432,86034.0,86033.0,0.06431]
[1765847392818,0.00017432,86034.0,86033.0,0.14795441]
[1765847393009,0.00017432,86034.0,86033.0,0.06431]
[1765847393205,0.00017432,86034.0,86033.0,0.0759348]
[1765847393409,4.32e-06,86034.0,86033.0,0.0759348]
[1765847394320,0.00100432,86034.0,86033.0,0.0759348]
[1765847395417,0.05985,86053.0,86052.0,0.0937022]
[1765847395618,0.42065,86058.0,86057.0,0.06431]
[1765847397417,0.00017432,86066.0,86065.0,0.06431]
[1765847397623,0.00017432,86066.0,86065.0,0.0759305]
[1765847398921,0.02987432,86066.0,86065.0,0.0759305]
[1765847399523,0.03387432,86066.0,86065.0,0.0759305]
[1765847400024,0.00417432,86066.0,86065.0,0.0759305]
[1765847400222,0.00417432,86066.0,86065.0,0.4367305]
[1765847400725,0.06402432,86066.0,86065.0,0.4367305]
[1765847400922,0.00417432,86066.0,86065.0,0.4367305]
[1765847401124,0.03387432,86066.0,86065.0,0.4367305]
[1765847401319,0.00417432,86066.0,86065.0,0.4367305]
[1765847401723,0.3608,86080.0,86079.0,0.0116186]
[1765847401921,0.3905,86080.0,86079.0,0.0759286]
[1765847402324,0.4191,86080.0,86079.0,0.0759286]
[1765847402922,0.4211,86080.0,86079.0,0.0759286]
[1765847403730,0.4211,86080.0,86079.0,0.06431]
[1765847404827,0.002,86080.0,86079.0,0.06431]
[1765847405825,0.002,86080.0,86079.0,0.42511]
[1765847406827,0.002,86080.0,86079.0,0.78591]
[1765847407028,0.00232295,86098.0,86097.0,0.0742261]
[1765847407217,0.06189295,86098.0,86097.0,0.8016661]
[1765847408620,0.06489295,86098.0,86097.0,0.8016661]
[1765847408829,0.06489295,86098.0,86097.0,0.79005]
[1765847409323,0.0116161,86097.0,86092.0,0.3608]
[1765847409529,0.0711871,86090.0,86089.0,0.00017422]
[1765847411238,0.03097,86090.0,86089.0,0.07440142]
[1765847411435,0.05957,86090.0,86089.0,0.07440142]
[1765847412136,0.06157,86090.0,86089.0,0.07440142]
[1765847414532,0.002,86090.0,86089.0,0.07440142]
[1765847415235,0.03297,86090.0,86089.0,0.07440142]
[1765847417434,0.00232295,86098.0,86089.0,0.07440142]
[1765847417435,0.00232295,86098.0,86097.0,0.0742261]
[1765847418730,0.00532295,86098.0,86097.0,0.0742261]
[1765847420736,0.05957,86113.0,86112.0,0.0906041]
[1765847421927,0.03097,86113.0,86112.0,0.4514041]
[1765847422132,0.05957,86121.0,86120.0,0.074223]
[1765847422333,0.05957,86113.0,86112.0,0.43996422]
[1765847422533,0.05957,86113.0,86112.0,0.45157832]
[1765847423142,0.17844551,86122.0,86121.0,0.0742229]
[1765847423143,0.23801551,86122.0,86121.0,0.0742229]
[1765847423341,0.05957,86122.0,86121.0,0.06261]
[1765847423535,0.05957,86113.0,86112.0,0.39200422]
[1765847423837,0.05957,86113.0,86112.0,0.00017422]
[1765847425139,0.05957,86113.0,86112.0,0.06278422]
[1765847426039,0.42037,86113.0,86112.0,0.06278422]
[1765847429839,0.05957,86113.0,86112.0,0.06278422]
[1765847437147,0.05957,86113.0,86112.0,0.07998422]
[1765847439746,0.05957,86113.0,86112.0,0.44078422]
[1765847440553,0.05957,86113.0,86112.0,0.07998422]
[1765847441053,0.05957,86113.0,86112.0,0.06278422]
[1765847448645,0.42149,86120.0,86119.0,0.0712132]
[1765847449048,0.42149,86120.0,86119.0,0.08385204]
[1765847449855,0.06069,86120.0,86119.0,0.08385204]
[1765847461168,0.0391677,86133.0,86132.0,0.0712114]
[1765847461368,0.0098977,86133.0,86132.0,0.7980114]
[1765847461576,0.3608,86147.0,86137.0,0.0712108]
[1765847461772,0.42149,86147.0,86146.0,0.0712095]
[1765847462073,0.06069,86147.0,86146.0,0.0712095]
[1765847462664,0.06069,86147.0,86146.0,0.0596]
[1765847463264,0.0421201,86142.0,86141.0,0.08337942]
[1765847463470,0.0886301,86142.0,86141.0,0.78395]
[1765847464365,0.05919,86142.0,86141.0,0.78395]
[1765847464574,0.41999,86147.0,86146.0,0.0687595]
[1765847464760,0.41999,86147.0,86146.0,0.0405595]
[1765847464964,0.41999,86147.0,86146.0,0.0116095]
[1765847465660,0.41999,86147.0,86146.0,0.0687595]
[1765847466461,0.41999,86147.0,86146.0,0.05715]
[1765847467669,0.03051,86147.0,86146.0,0.05715]
[1765847467867,0.05919,86154.0,86153.0,0.0687586]
[1765847469172,0.41999,86164.0,86163.0,0.0687573]
[1765847469866,0.41999,86164.0,86163.0,0.05715]
[1765847471577,0.41999,86164.0,86163.0,0.05815]
[1765847471879,0.05919,86164.0,86163.0,0.05815]
[1765847473464,0.41999,86172.0,86171.0,0.05715]
[1765847473672,0.41999,86172.0,86170.0,0.0116063]
[1765847473673,0.05919,86171.0,86170.0,0.7953563]
[1765847475972,0.06151079,86178.0,86177.0,0.0687554]
[1765847477680,0.06151079,86178.0,86177.0,0.08127411]
[1765847477879,0.03283079,86178.0,86177.0,0.08127411]
[1765847478085,0.00232079,86178.0,86177.0,0.08127411]
[1765847478674,0.03283079,86178.0,86177.0,0.08127411]
[1765847480583,0.00232079,86178.0,86177.0,0.08127411]
[1765847486774,0.03283079,86178.0,86177.0,0.08127411]
[1765847486973,0.06151079,86178.0,86177.0,0.08127411]
[1765847488687,0.03283079,86178.0,86177.0,0.08127411]
[1765847488875,0.00232079,86178.0,86177.0,0.08127411]
[1765847489484,0.07702,86190.0,86189.0,0.0687537]
[1765847489787,0.05919,86190.0,86189.0,0.0687537]
[1765847490376,0.53858575,86199.0,86198.0,0.0687525]
[1765847490377,0.41999,86199.0,86198.0,0.0687525]
[1765847491093,0.41999,86199.0,86198.0,0.05715]
[1765847491986,0.4315924,86199.0,86198.0,0.05715]
[1765847493189,0.41999,86199.0,86198.0,0.05715]
[1765847494092,0.05919,86199.0,86198.0,0.05715]
[1765847494881,0.05956,86192.0,86191.0,0.15252605]
[1765847495082,0.05956,86192.0,86191.0,0.02905]
[1765847495289,0.05956,86182.0,86181.0,0.05909412]
[1765847495489,0.05956,86182.0,86181.0,0.78529412]
[1765847495682,0.05956,86182.0,86181.0,0.79689892]
[1765847496595,0.05956,86164.0,86157.0,0.0116081]
[1765847496791,0.05956,86164.0,86163.0,0.01221851]
[1765847497292,0.05956,86164.0,86163.0,0.00014331]
[1765847497489,0.05956,86154.0,86153.0,0.3608]
[1765847497685,0.05956,86154.0,86153.0,0.4019846]
[1765847498483,0.05965702,86154.0,86153.0,0.4434632]
[1765847499195,9.702e-05,86154.0,86153.0,0.4434632]
[1765847499587,0.02888702,86154.0,86153.0,0.4434632]
[1765847500291,0.02888702,86154.0,86153.0,0.4454632]
[1765847502092,9.702e-05,86154.0,86153.0,0.4454632]
[1765847502489,0.3608,86166.0,86165.0,0.070527]
[1765847502790,0.05973343,86172.0,86171.0,0.05892]
[1765847503582,0.05981456,86172.0,86171.0,0.05892]
[1765847504880,0.05981456,86172.0,86171.0,0.05992]
[1765847506285,0.05981456,86172.0,86171.0,0.001]
[1765847506486,0.05981456,86172.0,86163.0,0.00017412]
[1765847506487,0.0711671,86164.0,86163.0,0.00017412]
[1765847506691,0.4319671,86164.0,86163.0,4.12e-06]
[1765847506986,0.8319671,86164.0,86163.0,4.12e-06]
[1765847507598,0.8319671,86164.0,86163.0,0.00100412]
[1765847508804,0.4319671,86164.0,86163.0,0.00100412]
[1765847508998,0.8339671,86164.0,86163.0,0.00100412]
[1765847509797,0.0711705,86139.0,86133.0,0.3608]
[1765847510000,0.43205163,86139.0,86135.0,0.0120978]
[1765847510395,0.43205163,86139.0,86128.0,1.5116119]
[1765847510710,0.43205163,86139.0,86132.0,0.0121491]
[1765847511094,0.43205163,86139.0,86138.0,0.03137187]
[1765847511296,0.42044113,86139.0,86138.0,0.06124187]
[1765847511592,0.42044113,86139.0,86138.0,0.06324187]
[1765847516108,0.42044113,86139.0,86138.0,0.00432187]
[1765847517404,0.42044113,86139.0,86138.0,0.03337187]
[1765847518398,0.42044113,86139.0,86138.0,0.00432187]
[1765847520212,0.42044113,86139.0,86138.0,0.06324187]
[1765847520904,0.42044113,86139.0,86138.0,0.00432187]
[1765847522710,0.42044113,86139.0,86138.0,0.03337187]
[1765847523008,0.42044113,86139.0,86138.0,0.00432187]
[1765847533129,0.42044113,86139.0,86138.0,0.03474187]
[1765847533329,0.42044113,86139.0,86138.0,0.06585187]
[1765847533719,0.42044113,86139.0,86138.0,0.00432187]
[1765847537133,0.42044113,86139.0,86138.0,0.06585187]
[1765847538844,8.113e-05,86139.0,86138.0,0.07746247]
[1765847539030,0.05852113,86139.0,86138.0,0.06585187]
[1765847539229,0.05852113,86139.0,86138.0,0.14939067]
[1765847539534,0.05852113,86139.0,86138.0,0.11828067]
[1765847539740,0.05852113,86139.0,86138.0,0.08786067]
[1765847540040,0.05852113,86139.0,86138.0,0.03474187]
[1765847540445,0.05852113,86139.0,86138.0,0.06585187]
[1765847541048,8.113e-05,86139.0,86138.0,0.14939067]
[1765847541238,8.113e-05,86139.0,86138.0,0.06585187]
[1765847541439,8.113e-05,86139.0,86138.0,0.42665187]
[1765847541742,0.01178362,86147.0,86138.0,0.42665187]
[1765847541743,0.04015362,86147.0,86146.0,0.0731395]
[1765847541947,0.04015362,86147.0,86146.0,0.15668839]
[1765847542148,0.00017412,86147.0,86146.0,0.0731395]
[1765847542350,0.02854412,86147.0,86146.0,0.15665719]
[1765847542647,0.05861412,86147.0,86146.0,0.0731395]
[1765847542848,0.02854412,86147.0,86146.0,0.0731395]
[1765847543052,0.00017412,86147.0,86146.0,0.0731395]
[1765847543237,0.00017412,86147.0,86146.0,0.7996595]
[1765847543439,0.0116077,86160.0,86157.0,0.0731381]
[1765847543640,0.0116076,86161.0,86157.0,0.7996581]
[1765847544049,0.0700476,86161.0,86160.0,0.06153]
[1765847546043,0.0700479,86158.0,86157.0,0.79005]
[1765847546241,0.0700479,86158.0,86157.0,0.06353]